[Event "7th Cattolica Open-B 2020"]
[Site "Cattolica"]
[Date "2020.09.02"]
[Round "3.9"]
[White "Gasperi, Fosco"]
[Black "Iasman, Inna"]
[Result "1/2-1/2"]
[ECO "D90"]
[WhiteElo "1878"]
[BlackElo "1659"]
[Annotator "NA RC"]
[PlyCount "107"]
[EventDate "2020.08.31"]
[EventType "swiss"]
[EventCountry "ITA"]
[SourceTitle "playchess.com"]
[Source "ChessBase"]
[SourceQuality "1"]
[TimeControl "5400+30"]

{[%evp 10,107,20,30,30,17,48,35,41,41,34,56,72,79,32767,32767,32767,32767,32767,32767,32767,32767,32767,32767,32767,32767,32767,32767,32767,32767,32767,32767,32767,32767,125,33,101,97,128,113,158,168,171,152,152,155,153,157,197,180,235,231,242,255,243,261,317,317,356,337,342,344,473,454,545,607,630,641,614,691,720,227,313,262,286,350,400,243,1749,29973,1746,29983,29988,29989,29989,525,398,482,416,592,515,0,0,0,0,0,0,0,0,0]} 1. d4 {[%emt 0:00:00]} d5 {[%emt 0:00:00]} 2. c4 {[%emt 0:00:00]} c6 {[%emt 0:00:06]} 3. cxd5 {[%emt 0:01:25]} cxd5 {[%emt 0:00:18]} 4. Nc3 {[%emt 0:00:19]} Nf6 {[%emt 0:00:29]} 5. Bf4 {[%emt 0:00:33]} Nc6 {[%emt 1:31:37]} 6. e3 a6 {[%emt 0:00:30]} 7. Bd3 {[%emt 0:02:02]} g6 {[%emt 0:00:30]} 8. h3 {[%emt 0:03:06]} Bg7 {[%emt 0:00:00]} 9. Nf3 O-O {[%emt 0:01:00]} 10. O-O {[%emt 1:27:35]} Na5 {[%emt 0:00:00] [#] Recently 10...Bf5 got a lot of attention. D90: Grünfeld: 4 Nf3 Bg7 sidelines.} 11. Rc1 $146 {[%emt 0:00:00]} ({Predecessor:} 11. Re1 Ne8 12. Ne5 f6 13. Nxg6 hxg6 14. Bxg6 f5 15. Qh5 Nf6 16. Qh4 Nc4 17. Ne2 Be6 18. Ng3 {½-½ (26) Veresov,G-Flohr,S Moscow 1944}) 11... Nc4 {[%emt 0:00:00]} 12. Qe2 {[%emt 0:00:00]} b5 {[%emt 0:00:00]} 13. b3 {[%emt 0:00:00]} Nd6 {[%emt 0:00:00]} 14. Ne5 {[%emt 0:00:00]} Bf5 {[%emt 0:00:00]} 15. Bxf5 {[%emt 0:00:00]} Nxf5 {[%emt 0:00:00]} 16. Nd3 {[%emt 0:00:00]} Qb6 {[%emt 0:00:00]} 17. g4 {[%emt 0:00:00]} Nd6 {[%emt 0:00:00]} 18. g5 {[%emt 0:00:00]} Nfe4 {[%emt 0:04:30]} 19. Nxd5 {[%emt 0:00:00]} Qb7 {[%emt 0:00:30]} 20. Nc3 {[%emt 0:00:00]} Rac8 {[%emt 0:00:00]} 21. Nxe4 {[%emt 0:00:00]} Nxe4 {[%emt 0:00:00]} 22. f3 {[%emt 0:00:00]} (22. Qf3 $16) 22... Nd6 {[%emt 0:01:30]} 23. Nc5 {[%emt 0:00:00]} Qd5 {[%emt 0:00:00]} 24. Rfd1 {[%emt 0:00:00]} Qf5 {[%emt 0:00:00]} 25. Qh2 {[%emt 0:00:00]} ({Don't take} 25. Nxa6 $6 Rxc1 26. Rxc1 Bxd4 $14) 25... Rc6 {[%emt 0:00:00]} 26. d5 {[%emt 0:00:00]} Rc7 {[%emt 0:00:00]} 27. e4 {[%emt 0:00:00]} Qc8 {[%emt 0:00:00]} 28. Nd3 {[%emt 0:00:00]} ({Don't play} 28. Bxd6 exd6 29. Nd3 (29. Qxd6 Re8 $16) 29... h6 $14) 28... Bd4+ {[%emt 0:00:00]} 29. Kf1 {[%emt 0:00:00]} Rc3 {[%emt 0:00:00]} 30. Rxc3 {[%emt 0:00:00]} ({Less strong is} 30. Bxd6 exd6 31. Rxc3 Qxc3 $16) 30... Qxc3 {[%emt 0:00:00]} 31. Qe2 {[%emt 0:00:00]} Qc8 {[%emt 0:00:00]} 32. Kg2 {[%emt 0:11:00]} f6 {[%emt 0:00:00]} 33. Nb4 {[%emt 0:00:00]} Bb6 {[%emt 0:00:00]} 34. Rc1 {[%emt 0:00:00]} Qd7 {[%emt 0:00:00]} 35. Rc6 {[%emt 0:00:00]} Nc8 {[%emt 0:00:00]} 36. Nxa6 {[%emt 0:00:00]} e5 {[%emt 0:00:00]} 37. Be3 {[%emt 0:00:00]} Bxe3 {[%emt 0:00:00]} 38. Qxe3 {[%emt 0:00:00]} f5 {[%emt 0:00:00]} 39. Nc5 {[%emt 0:00:00]} Qa7 {[%emt 0:00:00]} 40. Qe2 $2 {[%emt 0:00:00]} (40. Ra6 Qb8 41. Nd7) 40... Ne7 {[%emt 0:00:00]} 41. Ne6 {[%emt 0:00:00]} Nxc6 42. dxc6 {[%emt 0:00:00]} Rc8 {[%emt 0:00:00]} (42... Re8 {is a better defense.}) 43. c7 {[%emt 0:00:00]} f4 $2 {[%emt 0:00:00]} (43... Qa6) 44. Qd2 {[%emt 0:00:00]} Re8 {[%emt 0:01:39] [#]} 45. a4 $1 {[%emt 0:02:20] Promotion} Qb6 {[%emt 0:02:09] [#]} 46. Qd5 $1 {[%emt 0:00:14]} Qe3 {[%emt 0:04:21]} 47. Nd8+ {[%emt 0:04:07]} (47. Nxf4+ $142 Kf8 48. Qd6+ Kg8 {[#]} 49. Qe6+ $1 {[%mdl 576] Deflection, Decoy, Promotion} Rxe6 50. c8=Q+ {[%mdl 64] Double Attack} Kf7 51. Qxe6+ {[%mdl 64] Double Attack} Kf8 52. Qc8+ Ke7 53. Nd5+ {[%mdl 64] Double Attack} Kf7 54. Qd7+ {[%mdl 64] Double Attack} Kg8 55. Nf6+ Kf8 56. Qe8+ {[%mdl 64] Double Attack} Kg7 57. Qg8#) 47... Kh8 {[%emt 0:00:49] [#]} 48. Qd1 $1 {[%emt 0:00:25]} ({Stronger than} 48. c8=Q Qe2+ 49. Kh1 Qe1+ 50. Kh2 Qg3+ 51. Kh1 Qe1+ 52. Kh2 Qg3+ 53. Kh1 Qe1+ $11) 48... Qc5 {[%emt 0:00:40]} 49. Nf7+ {[%emt 0:00:52]} Kg7 {[%emt 0:01:23]} 50. Qd7 $2 {[%emt 0:00:02]} (50. Nd6 $18 Rf8 51. Nxb5) 50... Qc2+ {[%emt 0:00:28] Double Attack} 51. Kf1 {[%emt 0:00:10]} Qc1+ {[%emt 0:00:15]} 52. Kg2 {[%emt 0:00:16]} Qc2+ {[%emt 0:00:13]} 53. Kf1 {[%emt 0:00:30]} Qc1+ {[%emt 0:00:30]} 54. Kg2 $11 {[%emt 0:02:04]} 1/2-1/2

[Event "7th Cattolica Open-B 2020"]
[Site "Cattolica"]
[Date "2020.09.02"]
[Round "3.10"]
[White "Mammi, Samuele"]
[Black "Antoniacci, Riccardo"]
[Result "1-0"]
[ECO "A36"]
[WhiteElo "1847"]
[BlackElo "1649"]
[Annotator "NA RC"]
[PlyCount "77"]
[EventDate "2020.08.31"]
[EventType "swiss"]
[EventCountry "ITA"]
[SourceTitle "playchess.com"]
[Source "ChessBase"]
[SourceQuality "1"]
[TimeControl "5400+30"]

{[%evp 14,77,34,30,28,23,31,21,41,33,33,5,56,62,175,158,232,191,278,218,255,160,483,290,337,265,486,513,472,539,494,622,636,572,493,595,1178,1300,1342,1308,1355,622,1906,1784,1768,2489,1854,2107,1777,6870,2002,29973,29984,2481,1752,2296,5385,12841,29984,29986,29988,29990,1225,29993,29996,29997]} 1. e4 {[%emt 0:00:00]} c5 {[%emt 0:00:00]} 2. c4 {[%emt 0:00:00]} Nc6 {[%emt 0:00:43]} 3. Nc3 {[%emt 0:00:01]} g6 {[%emt 0:00:21]} 4. g3 {[%emt 0:00:11]} Bg7 {[%emt 0:00:26]} 5. Bg2 {[%emt 0:00:14]} Nf6 {[%emt 0:01:35]} 6. Nge2 {[%emt 0:00:25]} d6 {[%emt 0:00:57]} 7. O-O {[%emt 0:00:22] 7.d3 is the modern continuation.} e5 {[%emt 0:03:38] A36: Symmetrical English vs ...g6: 4 Bg2 Bg7.} 8. d3 {[%emt 0:00:20]} Be6 {[%emt 0:01:33]} 9. h3 {[%emt 0:00:36]} Qd7 {[%emt 0:03:29]} 10. Kh2 {[%emt 0:00:05]} h6 {[%emt 0:01:14] [#]} 11. f4 $146 {[%emt 0:00:14]} ({Predecessor:} 11. a3 g5 12. Rb1 a6 13. b4 Nd4 14. bxc5 dxc5 15. Nxd4 cxd4 16. Na4 Qc7 17. Nb6 {1-0 (48) Zhang,H (1848)-Li,S Qinhuangdao 2018}) 11... O-O-O {[%emt 0:04:11]} 12. Be3 {[%emt 0:01:40]} Nh7 {[%emt 0:03:36]} 13. Rb1 {[%emt 0:01:29]} f6 {[%emt 0:01:09]} (13... Kb8 $14) 14. a3 {[%emt 0:00:27]} f5 {[%emt 0:10:48]} (14... Nd4 $16 15. Nd5 f5) 15. Nd5 {[%emt 0:00:46]} g5 {[%emt 0:01:55]} (15... h5 {keeps fighting.} 16. b4 fxe4) 16. b4 {[%emt 0:03:50]} gxf4 {[%emt 0:02:14] [#]} (16... exf4 $142 17. gxf4 fxe4) 17. gxf4 {[%emt 0:00:10]} (17. exf5 $1 $18 Bxf5 18. gxf4) 17... cxb4 $2 {[%emt 0:01:37]} (17... fxe4 $16 {is a better chance.} 18. f5 (18. dxe4 exf4 19. Nexf4 Be5 $16) (18. Bxe4 Bxh3 19. Rg1 exf4 $14) (18. bxc5 exd3 19. Ng3 exf4 $16) 18... Bxd5) 18. axb4 {[%emt 0:00:22]} (18. Qa4 $142) 18... fxe4 {[%emt 0:01:39]} 19. dxe4 {[%emt 0:01:38]} exf4 $2 {[%emt 0:00:55]} (19... Rdg8 20. b5 Nd4 21. Nxd4 exd4) 20. Nexf4 {[%emt 0:01:46]} Be5 {[%emt 0:00:35]} 21. b5 {[%emt 0:02:47]} Bxf4+ {[%emt 0:01:05]} 22. Rxf4 {[%emt 0:00:51]} Ne5 {[%emt 0:01:20]} 23. Qa4 {[%emt 1:23:16]} Bxd5 {[%emt 0:56:30]} 24. cxd5 {[%emt 0:00:30]} a6 {[%emt 0:00:30]} 25. Rc1+ {[%emt 0:00:00]} Kb8 {[%emt 0:00:30]} 26. Qd4 {[%emt 0:01:00]} b6 {[%emt 0:00:00] [#]} 27. bxa6 {[%emt 0:00:00]} (27. Rc6 $142 $1 {[%mdl 512]} Nxc6 28. Qxb6+ {[%mdl 64] Double Attack} Qb7 29. dxc6 Qxb6 30. Bxb6) 27... Ng5 {[%emt 0:01:00]} 28. Qxb6+ {[%emt 0:00:00]} Ka8 {[%emt 0:00:00]} 29. Rc7 {[%emt 0:00:00]} Qxc7 {[%emt 0:00:00]} 30. Qxc7 {[%emt 0:02:00]} Rd7 {[%emt 0:01:30]} 31. Qc3 {[%emt 0:00:30]} Rg8 {[%emt 0:00:00]} 32. Rf2 {[%emt 0:00:30]} Rdg7 {[%emt 0:00:00] [#]} 33. Bxg5 {[%emt 0:01:00]} (33. Bd4 $142 $1 Nxh3 34. Bxe5 dxe5 35. Qc6+ {[%mdl 64] Double Attack} Ka7 36. Qc5+ Ka8 37. Bxh3 Rd8 38. d6) 33... hxg5 {[%emt 0:00:00]} 34. Rf6 {[%emt 0:00:00]} g4 {[%emt 0:00:00]} 35. Rxd6 {[%emt 0:00:00]} g3+ {[%emt 0:00:00]} 36. Kg1 {[%emt 0:02:30]} Rb8 {[%emt 0:03:00]} 37. Qxe5 {[%emt 0:00:00]} Rb1+ {[%emt 0:00:00]} 38. Bf1 {[%emt 0:00:00]} g2 {[%emt 0:00:00]} 39. Rd8+ {[%emt 0:00:00]} 1-0

[Event "7th Cattolica Open-B 2020"]
[Site "Cattolica"]
[Date "2020.09.03"]
[Round "4.1"]
[White "Saviane, Giorgio"]
[Black "Beliman, Alexandro"]
[Result "1/2-1/2"]
[ECO "C56"]
[WhiteElo "1643"]
[BlackElo "1732"]
[Annotator "NA RC"]
[PlyCount "78"]
[EventDate "2020.08.31"]
[EventType "swiss"]
[EventCountry "ITA"]
[SourceTitle "playchess.com"]
[Source "ChessBase"]
[SourceQuality "1"]
[TimeControl "5400+30"]

1. e4 {[%emt 0:00:00]} e5 {[%emt 0:00:00]} 2. Nf3 {[%emt 0:00:02]} Nc6 {[%emt 0:00:00]} 3. d4 {[%emt 0:00:28]} exd4 {[%emt 0:00:00]} 4. Bc4 {[%emt 0:00:56]} Nf6 {[%emt 0:00:00]} 5. O-O {[%emt 0:00:18]} Nxe4 {[%emt 0:01:23]} 6. Re1 {[%emt 0:00:55]} d5 {[%emt 0:00:04]} 7. Bxd5 {[%emt 0:00:20]} Qxd5 {[%emt 0:00:08]} 8. Nc3 {[%emt 0:00:15]} Qa5 {[%emt 0:01:04]} 9. Nxe4 {[%emt 0:00:24]} Be6 {[%emt 0:00:23]} 10. Neg5 {[%emt 0:00:33]} O-O-O {[%emt 0:00:18]} 11. Nxe6 {[%emt 0:00:33]} fxe6 {[%emt 0:00:08]} 12. Rxe6 {[%emt 0:00:11]} Bd6 {[%emt 0:00:14]} 13. Bg5 {[%emt 0:12:03]} Rde8 {[%emt 0:00:17]} 14. Qe2 {[%emt 0:05:11]} Kd7 {[%emt 0:00:27]} 15. Rxe8 {[%emt 0:08:21]} Rxe8 {[%emt 0:00:15]} 16. Qd3 {[%emt 0:06:33]} g6 {[%emt 0:07:29]} 17. Bd2 {[%emt 0:02:28]} Qc5 {[%emt 0:03:14]} 18. Ng5 {[%emt 0:11:45]} Re7 {[%emt 0:04:13]} 19. Ne4 {[%emt 0:13:10]} Qe5 {[%emt 0:09:55]} 20. Qh3+ {[%emt 0:06:58]} Qf5 {[%emt 0:08:57]} 21. Qxf5+ {[%emt 0:04:26]} gxf5 {[%emt 0:00:07]} 22. Nxd6 {[%emt 0:00:04]} Kxd6 {[%emt 0:00:04]} 23. Kf1 {[%emt 0:00:06]} Kd5 {[%emt 0:00:26]} 24. Re1 {[%emt 0:01:59]} Rxe1+ {[%emt 0:02:36]} 25. Kxe1 {[%emt 0:00:09]} Nd8 {[%emt 0:01:09]} 26. Ke2 {[%emt 0:00:12]} c5 {[%emt 0:03:17]} 27. h3 {[%emt 0:00:31]} Ke4 {[%emt 0:05:37]} 28. f3+ {[%emt 0:02:09]} Ke5 {[%emt 0:00:11]} 29. g4 {[%emt 0:00:11]} Ne6 {[%emt 0:01:15]} 30. Kd3 {[%emt 0:02:49]} b5 {[%emt 0:01:30]} 31. Ke2 {[%emt 0:05:22]} f4 {[%emt 0:01:31]} 32. h4 {[%emt 0:00:32]} h6 {[%emt 0:01:43]} 33. Ba5 {[%emt 0:02:42]} Kd5 {[%emt 0:00:50]} 34. Bd2 {[%emt 0:00:14]} Ke5 {[%emt 0:01:46]} 35. Ba5 {[%emt 0:00:14]} Kf6 {[%emt 0:01:16]} 36. Kd3 {[%emt 0:00:54]} Ke5 {[%emt 0:02:08]} 37. Ke2 {[%emt 0:00:11]} Kd5 {[%emt 0:00:23]} 38. Bd2 {[%emt 0:00:24]} Kc4 {[%emt 0:07:45]} 39. Be1 {[%emt 0:03:43]} Kd5 {[%emt 0:02:38]} 1/2-1/2

[Event "7th Cattolica Open-B 2020"]
[Site "Cattolica"]
[Date "2020.09.03"]
[Round "4.2"]
[White "Rimondini, Riccardo"]
[Black "Pizzoferrato, Mattia"]
[Result "1/2-1/2"]
[ECO "B28"]
[WhiteElo "1381"]
[BlackElo "1854"]
[Annotator "NA RC"]
[PlyCount "72"]
[EventDate "2020.08.31"]
[EventType "swiss"]
[EventCountry "ITA"]
[SourceTitle "playchess.com"]
[Source "ChessBase"]
[SourceQuality "1"]
[TimeControl "5400+30"]

{[%evp 21,72,-62,-43,-40,32767,32767,-56,-63,-63,-180,-125,-128,-113,-123,-93,-166,-158,-180,-183,-160,-189,-173,-195,-191,-125,-124,-130,-127,-77,-86,0,0,356,387,543,21,30,18,66,0,43,34,143,166,179,170,179,0,0,0,179,0,0]} 1. e4 {[%emt 0:00:20]} c5 {[%emt 0:00:00]} 2. Nf3 {[%emt 0:00:10]} a6 {[%emt 0:00:00]} 3. c3 {[%emt 0:01:15]} d6 {[%emt 0:00:02]} 4. d4 {[%emt 0:00:09]} cxd4 {[%emt 0:00:06]} 5. cxd4 {[%emt 0:00:17]} g6 {[%emt 0:00:11]} 6. Bc4 {[%emt 0:00:23] B28: Sicilian: 2 Nf3 a6 (O'Kelly Variation).} Bg7 {[%emt 0:00:28]} 7. Nc3 {[%emt 0:00:29]} Nf6 {[%emt 0:01:34]} 8. O-O {[%emt 0:00:51]} O-O {[%emt 0:00:11]} 9. Be3 {[%emt 0:00:44]} b5 {[%emt 0:00:32]} 10. Bb3 {[%emt 0:00:33]} Bb7 {[%emt 0:01:08]} 11. Bc2 {[%emt 0:01:07] [#]} ({Better is} 11. e5 $14 dxe5 12. dxe5) 11... b4 $146 {[%emt 0:03:26]} ({Predecessor:} 11... Nc6 12. Qd2 Na5 13. b3 Rc8 14. Rac1 Ng4 15. Bd3 Nc6 16. h3 Nxe3 17. Qxe3 Qb6 {0-1 (33) Stagno,M (1486)-Manar,K (1793) chess.com INT 2020}) 12. e5 {[%emt 0:02:31]} dxe5 {[%emt 0:06:34]} 13. dxe5 {[%emt 0:01:37]} Ng4 {[%emt 0:16:29]} 14. Na4 {[%emt 0:01:30]} Nd7 {[%emt 0:07:40]} ({Much worse is} 14... Nxe5 $6 15. Nxe5 Bxe5 16. Qxd8 $14) 15. Qd2 {[%emt 0:01:51]} (15. Bf4 $15) 15... Bxf3 {[%emt 0:05:58]} ({Resist} 15... Ngxe5 16. Nxe5 Nxe5 17. Qxb4 $15) 16. gxf3 {[%emt 0:00:29]} Ngxe5 {[%emt 0:00:50]} 17. Be4 {[%emt 0:01:32]} Rb8 {[%emt 0:02:20]} 18. Rfd1 {[%emt 0:01:57]} (18. Rad1 $17 {is a better defense.}) 18... Qa5 {[%emt 0:04:33]} 19. f4 {[%emt 0:05:28]} Qxa4 {[%emt 0:03:24]} 20. fxe5 {[%emt 0:00:44]} Nxe5 {[%emt 0:00:23]} 21. b3 {[%emt 0:00:27]} Qa5 {[%emt 0:05:32]} 22. Rac1 {[%emt 0:00:54]} Rfd8 {[%emt 0:01:59]} 23. Qe2 {[%emt 0:01:07]} Rxd1+ {[%emt 0:15:33]} 24. Rxd1 {[%emt 0:00:14]} h5 {[%emt 0:02:13]} 25. h3 {[%emt 0:01:13]} f5 {[%emt 0:02:00]} (25... Rd8 $15 26. f4 Rxd1+ 27. Qxd1 f5 28. Qd5+ Qxd5 29. Bxd5+ Nf7) 26. Bd5+ {[%emt 0:02:27]} Nf7 $2 {[%emt 0:03:13]} (26... Kh7 $11 {and Black is okay.}) 27. Qc4 {[%emt 0:00:38]} Rf8 {[%emt 0:00:16]} 28. Bc5 $2 {[%emt 0:00:53]} (28. Bxf7+ $18 Rxf7 29. Rd5 Qxd5 30. Qxd5) 28... Bf6 {[%emt 0:02:32]} 29. Bxb4 {[%emt 0:04:48]} Qb5 {[%emt 0:02:00]} 30. Re1 {[%emt 0:01:17]} Qxc4 {[%emt 0:02:01]} 31. Bxc4 {[%emt 0:00:34]} Rb8 {[%emt 0:01:19]} ({Black should try} 31... Kh7 $14) 32. Bxe7 {[%emt 0:00:39]} Re8 {[%emt 0:00:13]} 33. Bb4 {[%emt 0:00:22]} Rb8 {[%emt 0:00:59]} 34. Be7 {[%emt 0:01:12]} Re8 {[%emt 0:03:58]} 35. Bb4 {[%emt 0:00:12]} Rb8 $1 {[%emt 0:02:25]} 36. Be7 $2 {[%emt 0:01:37]} (36. Re6 $16) 36... Re8 $11 {[%emt 0:05:20]} 1/2-1/2

[Event "7th Cattolica Open-B 2020"]
[Site "Cattolica"]
[Date "2020.09.03"]
[Round "4.5"]
[White "D`Agostino, Maurizio"]
[Black "Di Maulo, Alessandra"]
[Result "1/2-1/2"]
[ECO "A30"]
[WhiteElo "1893"]
[BlackElo "1751"]
[Annotator "NA RC"]
[PlyCount "51"]
[EventDate "2020.08.31"]
[EventType "swiss"]
[EventCountry "ITA"]
[SourceTitle "playchess.com"]
[Source "ChessBase"]
[SourceQuality "1"]
[TimeControl "5400+30"]

{[%evp 8,39,6,1,4,12,17,-22,-5,-1,32767,32767,32767,32767,-8,-31,-11,-39,-52,-88,-70,-66,-10,-22,-13,0,-20,-23,0,-12,-4,-8,-12,-81]} 1. Nf3 {[%emt 0:00:00]} d5 {[%emt 0:00:00]} 2. c4 {[%emt 0:00:00]} e6 {[%emt 0:00:00]} 3. e3 {[%emt 0:00:19]} Nf6 {[%emt 0:00:00]} 4. Nc3 {[%emt 0:00:06]} Be7 {[%emt 0:00:25]} 5. b3 {[%emt 0:00:27]} O-O {[%emt 0:01:06]} 6. Bb2 {[%emt 0:00:04]} b6 {[%emt 0:03:23]} 7. Qc2 {[%emt 0:02:16]} Bb7 {[%emt 0:00:52]} 8. Be2 {[%emt 0:04:30]} c5 {[%emt 0:03:59]} 9. O-O {[%emt 0:03:19]} Nc6 {[%emt 0:03:58]} 10. cxd5 {[%emt 0:00:48]} Nxd5 {[%emt 0:03:51]} 11. Nxd5 {[%emt 0:05:33]} Qxd5 {[%emt 0:01:35] [#]} 12. d4 $146 {[%emt 0:02:47] A30: Symmetrical English: Double Fianchetto and Hedgehog.} ({Predecessor:} 12. Bc3 Rfd8 13. Qb2 Bf8 14. Rfd1 Rac8 15. Bf1 Qh5 16. h3 Qg6 17. Nh4 Qh5 18. Nf3 Qg6 19. Nh4 Qh5 {½-½ (19) Ballmann,M (2361)-Willems,N (2348) Switzerland 2019}) 12... cxd4 {[%emt 0:09:30]} 13. Bc4 {[%emt 0:03:16]} Qh5 {[%emt 0:05:09]} 14. Nxd4 {[%emt 0:01:43]} Bd6 {[%emt 0:07:05]} 15. f4 {[%emt 0:02:41]} Nb4 {[%emt 0:13:35]} 16. Qf2 {[%emt 0:16:54]} Nd5 {[%emt 0:43:32]} 17. Qg3 {[%emt 0:22:07]} Nf6 {[%emt 0:00:00]} 18. Nb5 {[%emt 0:05:14]} Be7 {[%emt 0:00:00]} 19. f5 {[%emt 0:08:13]} exf5 {[%emt 0:00:00]} 20. Nd4 $17 {[%emt 0:14:02]} (20. Rad1 $11 {keeps the balance.} Qg6 21. Nd6) 20... Ne4 {[%emt 0:00:00]} 21. Qxg7+ {[%emt 0:07:25]} Kxg7 {[%emt 0:00:00]} 22. Nxf5+ {[%emt 0:00:03]} Kg6 {[%emt 0:00:00]} 23. Nxe7+ {[%emt 0:00:06]} Kh6 {[%emt 0:00:00]} 24. Nf5+ {[%emt 0:00:30]} Kg6 {[%emt 0:00:00]} 25. Ne7+ {[%emt 0:01:18]} Kh6 {[%emt 0:00:00]} 26. Nf5+ {[%emt 0:00:30]} 1/2-1/2

[Event "7th Cattolica Open-B 2020"]
[Site "Cattolica"]
[Date "2020.09.03"]
[Round "4.7"]
[White "Tacconi, Antonio"]
[Black "Mammi, Samuele"]
[Result "0-1"]
[ECO "A27"]
[WhiteElo "1752"]
[BlackElo "1847"]
[Annotator "NA RC"]
[PlyCount "68"]
[EventDate "2020.08.31"]
[EventType "swiss"]
[EventCountry "ITA"]
[SourceTitle "playchess.com"]
[Source "ChessBase"]
[SourceQuality "1"]
[TimeControl "5400+30"]

{[%evp 8,68,22,19,45,20,35,8,33,32767,38,37,48,20,22,19,27,29,27,19,64,45,68,62,52,37,56,45,37,-14,36,-14,-25,-15,-10,-6,8,4,19,-81,-91,-87,-90,-241,32767,32767,32767,32767,32767,32767,32767,-271,-204,-851,-802,-772,-374,-571,-257,-1046,-1045,32767,-29986]} 1. c4 {[%emt 0:01:02]} e5 {[%emt 0:00:00]} 2. Nc3 {[%emt 0:00:53]} Nc6 {[%emt 0:00:52]} 3. Nf3 {[%emt 0:01:00]} f5 {[%emt 0:05:40]} 4. d4 {[%emt 0:01:15]} e4 {[%emt 0:01:05]} 5. Ng5 {[%emt 0:00:16]} Be7 {[%emt 0:01:07]} 6. Nh3 {[%emt 0:00:41]} Nf6 {[%emt 0:00:32]} 7. Bg5 {[%emt 0:01:26] A27: English Opening: Three Knights Variation.} O-O {[%emt 0:00:57]} 8. e3 {[%emt 0:00:17]} Ng4 {[%emt 1:23:47]} 9. Bxe7 {[%emt 0:01:59]} Nxe7 {[%emt 0:00:00]} 10. Be2 {[%emt 0:03:49]} Nf6 {[%emt 0:00:00]} 11. O-O {[%emt 0:02:13] [#]} Kh8 $146 {[%emt 0:00:00]} ({Predecessor:} 11... d6 12. b4 h6 13. d5 g5 14. Qd4 Ng6 15. Kh1 Qe7 16. c5 f4 17. Ng1 Nh4 18. cxd6 cxd6 {0-1 (31) Solonar,S (2319)-Eberhardt,O (2218) Hessen 1999}) 12. Nf4 {[%emt 0:01:11]} g5 {[%emt 0:00:00]} 13. Nh5 {[%emt 0:17:21]} d6 {[%emt 0:00:00]} 14. Nxf6 {[%emt 0:01:00]} Rxf6 {[%emt 0:00:00]} 15. f3 {[%emt 0:09:59]} exf3 {[%emt 0:00:00]} 16. Bxf3 {[%emt 0:05:06]} Ng6 {[%emt 0:00:00]} 17. e4 {[%emt 0:04:10]} f4 {[%emt 0:00:00]} 18. Bg4 {[%emt 0:07:21]} c6 {[%emt 0:00:00]} 19. Bxc8 {[%emt 0:01:00]} Rxc8 {[%emt 0:00:00]} 20. Qh5 {[%emt 0:02:35]} Rf8 {[%emt 0:00:00]} 21. Rad1 {[%emt 0:09:26]} Qf6 {[%emt 0:00:00]} 22. e5 {[%emt 0:11:05]} dxe5 {[%emt 0:00:00]} 23. dxe5 {[%emt 0:01:05] [#]} (23. Ne4 $11 Qg7 24. Nxg5 (24. Qxg5 exd4 25. Nd6 Rc7 $15)) 23... Qf5 $1 {[%emt 0:00:00]} ({Reject} 23... Nxe5 $6 24. Ne4 $11) 24. g4 {[%emt 0:08:35]} Qxe5 {[%emt 0:00:00] [#]} 25. Rfe1 {[%emt 0:00:34]} (25. Rd7 $1 $17 {[%mdl 512]} Ne7 26. Kh1) 25... Qc5+ {[%emt 0:00:00]} 26. Kh1 {[%emt 0:01:48]} Rcd8 {[%emt 0:00:00]} 27. Rxd8 {[%emt 0:01:40]} Rxd8 {[%emt 0:00:00]} 28. Ne4 {[%emt 0:00:13]} Qb4 {[%emt 0:00:00]} 29. Rb1 {[%emt 0:01:46]} Qxc4 {[%emt 0:00:00]} 30. Nf6 $2 {[%emt 0:00:59]} (30. Nxg5 Rd7 31. Re1) 30... Qf7 {[%emt 0:00:00]} 31. Qxg5 {[%emt 0:01:05]} Rf8 {[%emt 0:00:00]} (31... Qe6 $142 32. Qa5 Qxf6) 32. Nh5 $2 {[%emt 0:01:40]} (32. Ne4 {was the only defense.} Qxa2 33. Nd2) 32... f3 {[%emt 0:00:00]} (32... Qe8 $142 33. Rf1 {[#]} Qe2 $1 {[%mdl 576] Double Attack}) 33. Qa5 $2 {[%emt 0:01:20]} (33. Rf1) 33... f2 {[%emt 0:00:00]} 34. Rf1 {[%emt 0:00:09]} Qf3# {[%emt 0:00:00]} 0-1